bitfinex/quotes_ETHUSD_20240703
["timestamp","ask_amount","ask_price","bid_price","bid_amount"]
[1720003435481,0.04374812,3315.3,3313.4,7.16828]
[1720003435687,1.0,3315.3,3313.4,7.53638399]
[1720003435986,0.04374812,3315.2,3313.4,7.53638399]
[1720003436164,1.0,3315.3,3313.4,7.53638399]
[1720003436581,0.64015708,3315.2,3313.4,8.79556939]
[1720003436962,0.04367276,3315.1,3313.4,8.79556939]
[1720003437362,0.04367276,3315.1,3313.5,0.06034295]
[1720003437567,0.64015708,3315.2,3313.5,0.06034295]
[1720003437770,0.64015708,3315.2,3313.5,1.31952835]
[1720003438174,4.91051894,3315.4,3313.6,1.2591854]
[1720003438374,4.91051894,3315.4,3313.7,1.2591854]
[1720003438581,0.0434991,3315.3,3313.8,0.06033259]
[1720003438754,4.91051894,3315.4,3313.8,0.06033259]
[1720003438955,4.91051894,3315.4,3313.8,1.31951799]
[1720003439271,4.91051894,3315.4,3313.8,7.49933259]
[1720003439478,4.91051894,3315.4,3313.8,8.75851799]
[1720003439672,5.40157083,3315.4,3313.8,1.25949183]
[1720003439886,5.40157083,3315.4,3313.5,1.25949183]
[1720003440073,1.04355807,3315.3,3313.5,1.25949183]
[1720003440262,1.0,3315.3,3313.4,12.36587582]
[1720003440583,5.40157083,3315.4,3313.4,12.36587582]
[1720003440785,0.54015708,3315.3,3313.5,0.06034258]
[1720003440983,4.91051894,3315.4,3313.6,1.25949183]
[1720003441184,4.91051894,3315.4,3313.5,4.82949183]
[1720003441386,0.04352204,3315.3,3313.5,4.82949183]
[1720003441692,5.91051894,3315.4,3313.5,3.57]
[1720003441898,1.0,3315.1,3313.4,7.53638399]
[1720003442079,6.8167,3315.0,3313.4,7.16828]
[1720003442272,6.8167,3315.0,3313.5,0.0603526]
[1720003442588,6.86022204,3315.0,3313.5,0.0603526]
[1720003442888,6.86022204,3315.0,3313.4,7.16828]
[1720003442889,7.54624424,3315.0,3313.4,7.16828]
[1720003443588,1.0,3314.9,3313.4,7.16828]
[1720003443963,7.5325122,3314.8,3313.4,7.16828]
[1720003444188,7.489,3314.8,3313.4,7.16828]
[1720003444367,0.0434532,3314.7,3313.4,7.16828]
[1720003444573,0.79669852,3314.7,3312.9,8.42777183]
[1720003444773,0.79669852,3314.7,3312.9,8.79402298]
[1720003444972,0.79669852,3314.7,3312.9,7.53453115]
[1720003444973,0.75324532,3314.7,3312.9,7.53453115]
[1720003446468,0.75324532,3314.7,3313.0,0.06035174]
[1720003446863,7.489,3314.8,3313.0,4.82949183]
[1720003447990,7.489,3314.8,3314.0,3.57]
[1720003448189,6.9089,3315.8,3314.1,0.06033602]
[1720003448406,5.2159,3317.1,3313.6,15.51307183]
[1720003448407,0.04339424,3314.7,3313.6,15.51307183]
[1720003448707,0.04343027,3314.6,3313.6,7.0853]
[1720003449082,6.9089,3314.9,3313.4,1.25949183]
[1720003449265,6.9089,3314.9,3313.5,0.06034661]
[1720003450109,6.9089,3314.9,3313.5,1.31983844]
[1720003450466,6.9089,3314.9,3313.5,0.06034661]
[1720003451062,6.9089,3314.9,3313.4,1.25949183]
[1720003451972,7.59979,3314.9,3313.4,0.35707293]
[1720003452265,0.0435384,3314.8,3313.3,4.82949183]
[1720003452492,7.59979,3314.9,3313.3,4.82949183]
[1720003452493,7.59979,3314.9,3313.3,3.57]
[1720003452697,0.759979,3314.8,3313.4,0.06034961]
[1720003452905,6.9089,3314.9,3313.4,0.06034961]
[1720003453081,0.04352857,3314.7,3313.3,4.82949183]
[1720003453400,6.9089,3314.9,3313.4,2.19440651]
[1720003454294,0.0434991,3314.8,3313.4,3.45389834]
[1720003454599,0.0434991,3314.8,3313.4,1.25949183]
[1720003454822,7.84543991,3314.7,3313.5,0.06034502]
[1720003455037,7.1502,3314.6,3313.1,7.16828]
[1720003455310,7.1936991,3314.5,3313.1,7.16828]
[1720003455905,1.0,3314.3,3313.1,7.16828]
[1720003456087,7.1936991,3314.5,3313.1,7.16828]
[1720003456295,1.04353187,3314.2,3313.1,7.16828]
[1720003456469,1.0,3314.2,3313.1,7.16828]
[1720003456787,7.1502,3314.5,3313.1,7.16828]
[1720003456987,0.0432926,3314.1,3313.1,7.16828]
[1720003457194,0.7576724,3314.4,3313.1,7.16828]
[1720003457395,0.0432926,3314.0,3313.1,7.16828]
[1720003457629,0.7576724,3314.4,3312.5,8.42777183]
[1720003457923,0.7576724,3314.4,3312.6,3.51490911]
[1720003458241,0.83407984,3314.3,3312.6,1.31985339]
[1720003458381,0.0432926,3314.3,3312.8,1.25949183]
[1720003458576,0.0432926,3314.3,3313.0,6.8802]
[1720003458780,0.0432926,3314.3,3313.3,1.25949183]
[1720003459021,7.1502,3314.5,3313.4,1.25949183]
[1720003459235,7.1502,3314.5,3313.5,1.25949183]
[1720003459381,7.1502,3314.5,3313.3,1.25949183]
[1720003459589,7.1502,3314.5,3313.4,3.45397019]
[1720003459892,7.1502,3314.5,3313.4,1.25949183]
[1720003460703,7.1502,3314.5,3313.5,0.06034848]
[1720003461791,7.1502,3314.5,3313.4,1.25949183]
[1720003462117,7.1502,3314.5,3313.0,8.77529879]
[1720003462118,7.1502,3314.5,3313.5,2.19452872]
[1720003462301,7.1502,3314.5,3313.6,2.25487341]
[1720003462619,1.0,3315.5,3313.7,2.19444916]
[1720003462797,1.0,3315.5,3313.8,2.19444916]
[1720003462996,1.0,3315.5,3313.2,10.73828]
[1720003462997,8.3716,3315.3,3313.2,7.16828]
[1720003463197,7.3716,3315.3,3313.3,2.1944684]
[1720003463395,7.0782,3315.0,3313.4,3.45802331]
[1720003463594,7.0782,3315.0,3313.5,2.1944684]
[1720003463809,0.04345979,3314.9,3313.3,1.26359168]
[1720003464009,0.71216598,3314.8,3313.4,2.19455094]
[1720003464304,0.04345323,3314.7,3313.4,2.19455094]
[1720003464819,0.71216598,3314.8,3313.5,0.06035179]
[1720003465055,7.0782,3315.0,3313.5,1.26359168]
[1720003465344,7.0782,3315.0,3313.6,2.25487484]
[1720003465504,0.04335489,3314.9,3313.6,0.06034467]
[1720003465708,0.04335489,3314.9,3313.5,1.26359168]
[1720003465949,0.75551038,3314.9,3313.6,2.19452679]
[1720003466230,0.75551038,3314.9,3313.2,7.16828]
[1720003466405,1.75551038,3314.9,3313.3,2.19474123]
[1720003466605,1.75551038,3314.9,3313.4,2.19467964]
[1720003466824,1.75551038,3314.9,3313.3,1.26359168]
[1720003466825,0.75551038,3314.9,3313.3,1.26359168]
[1720003467046,0.78337104,3314.8,3313.4,2.19468032]
[1720003467214,0.04329261,3314.7,3313.2,8.43187168]
[1720003467417,0.78337104,3314.8,3313.3,2.19471367]
[1720003467648,0.0432533,3314.7,3313.4,0.06035153]
[1720003467813,0.0432533,3314.7,3313.3,3.45830535]
[1720003467814,0.78337104,3314.8,3313.5,2.25505996]
[1720003468012,0.0432533,3314.7,3313.5,0.06034629]
[1720003468214,7.0782,3315.0,3313.6,2.25494773]
[1720003468415,0.04321724,3314.9,3313.7,2.19456606]
[1720003468676,0.04321724,3314.9,3313.8,0.06033918]
[1720003468866,7.0782,3315.0,3313.9,2.19456606]
[1720003469148,7.0782,3315.0,3314.0,1.32393026]
[1720003469455,7.0782,3315.0,3314.1,2.19456606]
[1720003469623,7.0782,3315.0,3314.2,0.06033858]
[1720003470730,0.04328933,3314.9,3314.2,0.06033858]
[1720003470914,7.0782,3315.0,3314.2,0.06033858]
[1720003471311,0.04328933,3314.9,3314.2,0.06033858]
[1720003471758,7.0782,3315.0,3314.2,0.06033858]
[1720003472113,0.04350563,3314.9,3314.2,0.06033858]
[1720003472519,0.04350563,3314.9,3314.0,1.26454275]
[1720003472759,0.04350563,3314.9,3314.1,2.25452765]
[1720003473002,7.0782,3315.0,3314.2,2.19419154]
[1720003473447,7.0782,3315.0,3313.8,1.26454275]
[1720003473448,0.04351218,3314.9,3313.8,1.26454275]
[1720003473649,7.0782,3315.0,3313.9,2.19429678]
[1720003474388,0.70782,3314.9,3313.8,1.26454275]
[1720003474562,0.70782,3314.9,3313.9,2.19445416]
[1720003474762,7.0782,3315.0,3313.7,1.62779257]
[1720003474961,0.04363345,3314.8,3313.8,3.45898699]
[1720003475178,7.0782,3315.0,3313.9,2.19444424]
[1720003475562,7.0782,3315.0,3313.7,1.26454275]
[1720003475563,0.04363345,3314.9,3313.7,1.26454275]
[1720003475764,0.04363345,3314.9,3313.8,2.19445041]
[1720003478190,0.04363345,3314.9,3313.8,3.45899316]
[1720003478488,0.04363345,3314.9,3313.9,3.51933285]
[1720003478689,7.0782,3315.0,3314.0,2.19445041]
[1720003478893,7.0782,3315.0,3314.1,0.06033968]
[1720003479048,7.0782,3315.0,3314.2,2.19445041]
[1720003479388,7.0782,3315.0,3314.3,0.06033624]
[1720003479586,7.0782,3315.0,3314.4,2.19445041]
[1720003480187,6.39201019,3315.0,3314.4,2.19445041]
[1720003480615,0.04356135,3314.9,3314.4,2.19445041]
[1720003481180,0.04356135,3314.9,3314.1,1.2654556]
[1720003481389,0.04356135,3314.9,3314.2,2.19426581]
[1720003481723,0.04356135,3314.9,3313.9,1.2654556]
[1720003481724,6.39201019,3315.0,3313.9,1.2654556]
[1720003481861,0.0436269,3314.8,3314.0,2.19436368]
[1720003482060,6.01083628,3315.0,3314.1,2.25470818]
[1720003482286,0.04353843,3314.9,3314.2,2.19436368]
[1720003482481,6.01083628,3315.0,3314.2,2.19436368]
[1720003483498,0.04353843,3314.9,3314.2,2.19436368]
[1720003483672,0.04353843,3314.9,3313.9,1.2654556]
[1720003484001,6.01083628,3315.0,3314.0,2.19431108]
[1720003484178,6.01083628,3315.0,3314.1,2.19431108]
[1720003484380,6.01083628,3315.0,3314.2,2.19431108]
[1720003484573,6.01083628,3315.0,3313.9,1.26548046]
[1720003484574,6.01083628,3315.0,3313.9,1.26549532]
[1720003484782,6.01083628,3315.0,3314.0,2.1943168]
[1720003485522,6.01083628,3315.0,3314.4,1.816]
[1720003485673,6.01083628,3315.0,3314.4,1.8763361]
[1720003485869,0.0435122,3314.9,3314.4,1.816]
[1720003486624,0.0435122,3314.9,3314.2,1.87633609]
[1720003486912,6.01083628,3315.0,3314.4,1.816]
[1720003487276,0.04353514,3314.9,3314.4,1.816]
[1720003487800,0.04353514,3314.9,3314.2,1.816]
[1720003488013,0.04353514,3314.9,3314.4,1.816]
[1720003488213,6.01083628,3315.0,3314.4,1.816]
[1720003488391,0.04353514,3314.8,3314.4,1.816]
[1720003488709,6.01083628,3315.0,3314.4,1.816]
[1720003489002,6.01083628,3315.0,3314.2,1.816]
[1720003489224,0.04357118,3314.9,3314.4,1.816]
[1720003489573,7.01083628,3315.0,3314.4,1.816]
[1720003489768,6.71191991,3315.0,3314.4,1.816]
[1720003490007,0.04356464,3314.9,3314.4,1.816]
[1720003490377,1.04356464,3314.9,3314.4,1.816]
[1720003490693,1.0,3314.7,3314.4,1.816]
[1720003490886,0.04352204,3314.6,3314.4,1.816]
[1720003491082,0.04352204,3314.6,3313.6,1.26550755]
[1720003491083,6.8197,3314.5,3313.9,1.816]
[1720003491282,0.04339751,3314.4,3313.9,1.816]
[1720003491696,1.04339751,3314.4,3313.9,1.816]
[1720003491926,0.78630975,3314.3,3313.9,1.816]
[1720003492225,6.8451,3314.2,3313.9,1.816]
[1720003492375,6.88835003,3314.2,3313.9,1.816]
[1720003493320,0.04325003,3314.2,3314.0,1.816]
[1720003493676,6.9307,3314.7,3314.0,1.816]
[1720003493878,0.04303693,3314.6,3314.0,1.816]
[1720003494336,0.04303693,3314.6,3314.1,1.816]
[1720003494877,0.04303693,3314.6,3314.2,0.06034457]
[1720003495114,7.457,3315.2,3314.2,0.06034457]
[1720003495115,0.04174334,3314.5,3314.2,0.06034457]
[1720003495285,0.04174334,3314.5,3314.4,1.816]
[1720003495497,7.457,3315.2,3314.4,1.816]
[1720003496311,7.457,3315.2,3314.0,6.9149]
[1720003496312,7.457,3315.2,3314.3,1.816]
[1720003496532,7.457,3315.2,3314.5,1.816]
[1720003497379,7.457,3315.2,3314.4,0.06033221]
[1720003498012,7.457,3315.2,3314.3,1.816]
[1720003498189,7.457,3315.2,3314.5,1.816]
[1720003498802,7.457,3315.2,3314.6,0.06033224]
[1720003499007,7.2633,3316.0,3314.7,0.06032919]
[1720003499228,0.82633,3315.9,3314.7,0.06032919]
[1720003499518,0.04070311,3315.9,3314.8,0.06032759]
[1720003499723,0.04070311,3315.9,3315.0,1.816]
[1720003499887,0.04070311,3315.9,3315.0,1.87632441]
[1720003500085,7.2633,3316.0,3315.0,1.816]
[1720003500285,7.2633,3317.0,3315.2,1.816]
[1720003500485,7.2633,3317.0,3315.4,1.816]
[1720003500486,1.0,3316.7,3315.4,1.816]
[1720003500700,1.0,3316.5,3315.4,1.816]
[1720003500920,7.2633,3316.4,3315.4,1.816]
[1720003501420,7.2633,3316.4,3315.0,0.06032352]
[1720003501421,0.04096565,3316.3,3315.5,1.816]
[1720003502395,0.04096565,3316.3,3314.9,1.816]
[1720003502605,7.1351,3316.1,3315.1,1.816]
[1720003503119,0.04101815,3316.0,3315.1,1.816]
[1720003503326,1.0,3315.6,3315.1,1.816]
[1720003503530,1.0,3315.4,3314.4,1.816]
[1720003503708,7.345,3315.9,3314.6,1.816]
[1720003503910,0.77551815,3315.8,3314.6,1.816]
[1720003504738,0.77551815,3315.8,3314.7,1.816]
[1720003504914,1.0,3315.4,3314.7,1.816]
[1720003505096,0.04094599,3315.3,3314.7,1.816]
[1720003505819,1.0,3317.0,3314.7,1.816]
[1720003505820,6.9687,3315.2,3314.7,1.816]
[1720003505997,0.69687,3315.1,3314.3,1.816]
[1720003506189,0.73770445,3315.1,3314.3,1.816]
[1720003506424,1.0,3315.0,3314.3,1.816]
[1720003506803,1.0,3315.0,3314.2,1.816]
[1720003507006,0.04083445,3314.9,3314.2,1.816]
[1720003507225,0.04083445,3314.9,3314.4,1.816]
[1720003507226,0.00730101,3314.9,3314.4,1.816]
[1720003507425,0.04083445,3314.9,3314.6,1.816]
[1720003507626,6.9687,3315.0,3314.6,1.816]
[1720003507801,6.9687,3315.0,3313.9,1.26528353]
[1720003507802,0.03960514,3314.8,3313.9,1.816]
[1720003508001,7.66557,3315.0,3314.1,1.816]
[1720003508233,0.03960514,3314.7,3314.1,1.816]
[1720003508404,7.66557,3315.0,3314.1,1.816]
[1720003509029,7.66557,3315.0,3313.7,1.816]
[1720003509332,0.766557,3314.9,3313.9,1.816]
[1720003509820,0.03957231,3314.8,3313.9,1.816]
[1720003510021,0.03957231,3314.8,3314.1,1.816]
[1720003510223,0.03957231,3314.8,3314.3,1.816]
[1720003510420,6.9687,3315.0,3314.3,1.816]
[1720003510945,0.03952967,3314.9,3314.3,1.816]
[1720003511238,0.03952967,3314.9,3314.1,1.816]
[1720003511444,0.03952967,3314.9,3314.3,1.816]
[1720003511609,6.9687,3315.0,3314.3,1.816]
[1720003511807,9.514e-05,3314.8,3314.5,1.816]
[1720003512011,7.0879,3315.6,3314.5,1.816]
[1720003512238,7.0879,3316.2,3314.7,1.816]
[1720003512440,7.0879,3316.2,3314.6,2.25447413]
[1720003512441,0.03577247,3315.5,3314.9,1.816]
[1720003512748,0.03578888,3315.4,3315.1,1.816]
[1720003513114,7.89669,3316.2,3315.1,1.816]
[1720003513324,0.03476012,3316.1,3315.3,1.816]
[1720003513541,0.92790513,3316.1,3315.3,1.816]
[1720003514348,0.92790513,3316.1,3315.4,1.816]
[1720003515445,0.92790513,3316.1,3315.5,1.816]
[1720003516243,1.92790513,3316.1,3315.5,1.816]
[1720003516517,1.0,3315.9,3315.0,1.816]
[1720003516934,0.89314501,3316.1,3315.0,1.816]
[1720003517124,0.7981045,3316.0,3315.0,1.816]
[1720003517332,0.03504911,3315.9,3315.0,1.816]
[1720003517546,1.0,3316.1,3315.0,1.816]
[1720003517847,1.0,3315.9,3315.0,1.816]
[1720003518010,0.03502941,3316.0,3315.0,1.816]
[1720003518216,0.71229294,3316.0,3315.0,1.816]
[1720003518444,1.03504254,3315.9,3315.0,1.816]
[1720003518645,1.03504254,3315.9,3315.0,2.17835661]
[1720003518951,0.71229294,3316.0,3315.0,2.17835661]
[1720003519318,1.0,3315.6,3315.0,1.816]
[1720003519518,1.0,3315.6,3314.9,1.26551842]
[1720003519739,1.0,3315.6,3314.7,8.98428]
[1720003519945,0.71229294,3316.0,3314.7,8.98428]
[1720003520148,1.0,3315.5,3314.7,8.98428]
[1720003520952,0.33912929,3315.9,3314.7,8.98428]
[1720003521246,1.0,3315.6,3314.7,8.98428]
[1720003521455,6.8788,3315.5,3314.7,7.16828]
[1720003521766,0.82284043,3315.4,3314.7,7.16828]
[1720003521946,0.82284043,3315.4,3314.5,1.816]
[1720003522328,0.82284043,3315.4,3314.2,1.816]
[1720003522531,0.03496043,3315.4,3314.4,1.816]
[1720003523650,0.03496043,3315.4,3314.2,1.816]
[1720003523823,0.03496043,3315.4,3314.4,1.816]
[1720003524750,1.03496043,3315.4,3314.2,1.816]
[1720003524932,0.79137604,3315.3,3314.2,1.816]
[1720003525133,0.03484549,3315.2,3314.4,1.816]
[1720003525378,0.79137604,3315.3,3314.4,1.816]
[1720003525724,0.03480936,3315.2,3314.4,1.816]
[1720003525923,0.2174279,3315.2,3314.4,1.816]
[1720003526147,0.2174279,3315.2,3314.2,1.816]
[1720003526148,0.03480936,3315.2,3314.2,1.816]
[1720003526346,0.03480936,3315.2,3314.2,1.87633925]
[1720003526555,7.1898,3315.6,3314.4,1.816]
[1720003527032,0.03482579,3315.5,3314.5,0.06033652]
[1720003527235,6.8787,3316.1,3314.8,1.816]
[1720003527454,6.8787,3316.1,3314.9,0.06032679]
[1720003527640,0.03250407,3316.0,3314.9,0.06032679]
[1720003527825,7.56657,3316.1,3314.9,0.06032679]
[1720003528036,0.03250407,3315.9,3314.9,0.06032679]
[1720003528238,7.56657,3316.1,3314.9,0.06032679]
[1720003528432,0.03250407,3315.8,3314.9,0.06032679]
[1720003528633,7.56657,3316.1,3314.9,0.06032679]
[1720003528851,0.03250407,3315.7,3314.9,0.06032679]
[1720003529052,0.756657,3316.0,3314.9,0.06032679]
[1720003529277,0.03265514,3315.6,3314.9,0.06032679]
[1720003529457,6.8787,3316.1,3314.8,1.816]
[1720003529754,7.8787,3316.1,3314.9,1.816]
[1720003529956,0.03265514,3316.0,3314.9,1.816]
[1720003530757,0.03265514,3316.0,3314.6,1.816]
[1720003530955,0.03265514,3316.0,3315.0,1.816]
[1720003531826,0.03265514,3316.0,3315.1,1.816]
[1720003532023,1.0,3315.4,3314.6,1.814]
[1720003532258,6.7569,3315.6,3314.6,1.814]
[1720003532628,1.0,3315.3,3314.6,1.814]
[1720003532825,1.0,3315.3,3314.7,1.814]
[1720003533232,0.03265514,3315.2,3314.7,1.814]
[1720003533658,1.0,3315.1,3314.7,1.814]
[1720003533868,1.0,3315.1,3314.2,1.814]
[1720003534739,6.7569,3315.6,3314.2,1.814]
[1720003535062,7.3646,3316.3,3314.3,2.25454747]
[1720003535263,1.0,3316.1,3314.4,4.00820761]
[1720003535569,1.0,3316.1,3314.6,1.814]
[1720003535733,1.0,3316.1,3314.7,0.06032893]
[1720003535937,1.0,3315.9,3314.7,0.06032893]
[1720003536452,0.03265514,3315.8,3314.7,0.06032893]
[1720003536656,0.03265514,3315.8,3314.5,0.06032892]
[1720003536851,0.03265514,3315.8,3314.5,6.99442892]
[1720003537035,7.3646,3316.3,3314.6,4.00795454]
[1720003537233,1.0,3316.1,3314.8,1.814]
[1720003537538,1.0,3316.1,3314.9,0.06032655]
[1720003537872,0.03265514,3316.0,3314.9,0.06032655]
[1720003538465,0.03265514,3316.0,3315.0,0.06032653]
[1720003538633,2.6459,3317.1,3315.3,12.4467]
[1720003538634,7.0873,3316.8,3315.3,12.4467]
[1720003538829,7.0873,3316.8,3315.5,1.814]
[1720003538830,7.89603,3316.8,3315.5,1.814]
[1720003539050,1.0,3316.6,3315.7,1.814]
[1720003539262,1.0,3316.6,3314.8,8.90986706]
[1720003539263,7.1954,3316.5,3315.0,1.26466662]
[1720003539560,7.2269535,3316.5,3314.6,8.45036662]
[1720003539736,1.0,3315.6,3314.7,2.19397315]
[1720003539936,1.0,3316.0,3314.7,2.19397315]
[1720003540137,0.03170455,3315.9,3314.8,1.814]
[1720003540487,0.03170455,3315.9,3315.0,1.814]
[1720003540681,1.0,3315.6,3315.0,1.814]
[1720003541277,0.71954,3316.4,3314.6,8.79910825]
[1720003541278,1.0,3315.5,3314.6,1.814]
[1720003541484,1.0,3315.5,3314.8,1.814]
[1720003541678,0.03158963,3315.4,3314.8,1.814]
[1720003542351,7.2554,3315.7,3314.5,1.814]
[1720003542554,0.85712307,3315.6,3314.5,1.814]
[1720003542808,1.0,3315.2,3314.7,1.814]
[1720003543254,1.0,3315.2,3314.3,1.814]
[1720003543255,0.03152723,3315.1,3314.3,1.814]
[1720003543587,0.03152723,3315.1,3314.5,1.814]
[1720003544653,1.0,3315.0,3314.5,1.814]
[1720003544848,1.0,3315.0,3314.0,1.814]
[1720003545058,0.0313696,3314.9,3314.2,1.814]
[1720003545285,1.0,3315.2,3314.2,1.814]
[1720003545586,0.03129733,3315.1,3314.2,1.814]
[1720003545814,0.03129733,3315.1,3314.3,0.06033692]
[1720003546105,0.03129733,3315.1,3314.5,1.814]
[1720003546283,1.0,3315.6,3314.5,1.814]
[1720003546450,1.0,3315.6,3314.7,1.814]
[1720003547492,1.0,3315.6,3314.8,1.814]
[1720003547963,1.82554,3315.6,3314.8,1.814]
[1720003548157,0.03109041,3315.5,3314.8,1.814]
[1720003548561,0.03109041,3315.5,3314.5,1.814]
[1720003548758,1.82554,3315.6,3314.7,1.814]
[1720003548961,0.03109041,3315.5,3314.7,1.814]
[1720003549572,1.0,3315.4,3314.7,1.814]
[1720003549784,0.94229345,3315.5,3314.5,1.814]
[1720003550013,1.0,3315.2,3314.5,1.814]
[1720003550518,1.0,3315.0,3314.5,1.814]
[1720003550673,1.0,3315.0,3314.0,1.814]
[1720003550867,1.0,3315.0,3313.9,1.26553051]
[1720003550868,0.03121852,3314.9,3314.2,1.814]
[1720003551094,0.03121852,3314.9,3314.4,1.814]
[1720003551314,1.0,3315.0,3314.0,1.814]
[1720003551470,1.0,3315.0,3314.2,1.814]
[1720003551669,1.0,3315.0,3314.4,1.814]
[1720003551670,0.03118569,3314.9,3314.4,1.814]
[1720003552079,1.0,3315.0,3314.4,1.814]
[1720003552511,0.03118569,3314.9,3314.4,1.814]
[1720003552712,0.03118569,3314.9,3314.1,1.814]
[1720003552919,1.0,3315.0,3314.3,1.814]
[1720003553084,0.03106414,3314.9,3314.3,1.814]
[1720003553513,1.0,3315.4,3314.3,1.814]
[1720003553888,0.03107728,3315.3,3314.2,1.814]
[1720003554090,0.03107728,3315.3,3314.4,1.814]
[1720003554683,1.0,3315.2,3314.4,1.814]
[1720003555086,1.0,3315.2,3314.2,1.814]
[1720003555314,0.03107728,3315.1,3314.4,1.814]
[1720003556227,0.03107728,3315.1,3314.1,1.814]
[1720003556391,1.0,3315.0,3314.3,1.814]
[1720003556585,1.0,3315.0,3314.4,4.00826414]
[1720003556783,0.03107728,3314.9,3314.4,1.814]
[1720003557224,1.0,3315.0,3314.4,1.814]
[1720003557586,0.03107728,3314.9,3314.1,1.814]
[1720003557783,0.03107728,3314.9,3314.3,1.814]
[1720003557987,1.0,3315.0,3314.4,4.00826669]
[1720003558212,1.0,3315.0,3314.4,1.814]
[1720003558615,0.03107728,3314.9,3314.4,1.814]
[1720003559102,1.0,3315.0,3314.1,1.814]
[1720003559292,1.0,3315.0,3314.3,1.814]
[1720003559502,1.0,3315.0,3314.0,1.26553051]
[1720003559503,0.03107728,3314.9,3314.4,4.00826556]
[1720003559704,0.03107728,3314.9,3314.4,1.814]
[1720003560093,1.0,3315.0,3314.4,1.814]
[1720003560411,0.03107728,3314.9,3314.4,1.814]
[1720003560604,0.03107728,3314.9,3314.2,1.814]
[1720003560801,7.2554,3315.7,3314.1,1.26553051]
[1720003560802,7.2554,3315.7,3314.4,1.814]
[1720003561002,0.72554,3315.6,3314.6,1.814]
[1720003561198,1.75661728,3315.6,3314.6,1.814]
[1720003562023,1.75661728,3315.6,3314.7,1.814]
[1720003562195,0.03107728,3315.6,3314.7,1.814]
[1720003562399,7.2554,3315.7,3314.7,1.814]
[1720003562824,0.03111999,3315.6,3314.7,1.814]
[1720003563012,0.03111999,3315.6,3314.8,1.814]
[1720003563329,7.2554,3315.7,3314.8,1.814]
[1720003563626,7.0552,3316.2,3314.8,1.814]
[1720003563829,1.0,3316.0,3314.8,1.814]
[1720003564032,1.0,3316.0,3314.7,1.814]
[1720003564231,0.03119882,3315.9,3314.9,1.814]
[1720003564827,0.03119882,3315.8,3314.9,1.814]
[1720003565028,0.03119882,3315.8,3315.1,1.814]
[1720003565192,7.0552,3316.2,3315.1,1.814]
[1720003565393,0.70552,3316.1,3315.1,1.814]
[1720003565993,0.70552,3316.1,3315.0,1.814]
[1720003566217,0.70552,3316.1,3315.2,1.814]
[1720003567036,0.03119882,3316.0,3315.3,2.19368747]
[1720003567201,7.2514,3316.7,3315.4,9.13977849]
[1720003567401,7.2514,3316.7,3315.7,1.814]
[1720003567402,0.03015886,3315.9,3315.7,1.814]
[1720003567633,7.2514,3316.7,3315.5,1.814]
[1720003567634,7.97654,3316.7,3315.5,1.814]
[1720003567813,0.03042156,3315.8,3315.5,1.814]
[1720003568008,7.97654,3316.7,3315.5,1.814]
[1720003568243,7.97654,3316.7,3314.9,8.46856557]
[1720003568244,1.0,3316.4,3314.9,1.26553051]
[1720003568537,7.97654,3316.7,3315.0,2.19371568]
[1720003568723,1.0,3316.0,3315.2,1.814]
[1720003568905,7.2694,3315.9,3315.2,1.814]
[1720003569338,0.03042156,3315.8,3315.2,1.814]
[1720003569700,0.03042156,3315.8,3315.3,1.814]
[1720003570311,1.0,3316.4,3315.3,1.814]
[1720003570516,1.0,3316.4,3315.5,1.814]
[1720003570838,7.2694,3316.6,3315.5,1.814]
[1720003570839,0.03059562,3316.3,3315.5,1.814]
[1720003571202,8.2694,3316.6,3315.5,1.814]
[1720003571400,8.2694,3316.6,3315.2,3.94453051]
[1720003571401,0.03064488,3316.5,3315.3,1.814]
[1720003571819,0.03064488,3316.5,3315.0,1.26553051]
[1720003571820,1.0,3316.4,3315.0,1.814]
[1720003572128,1.0,3315.8,3315.0,1.814]
[1720003572308,7.8308,3315.8,3315.0,1.814]
[1720003572508,6.8308,3315.8,3315.1,1.814]
[1720003572708,0.03065472,3315.7,3315.1,1.814]
[1720003573639,0.03065472,3315.7,3314.7,1.814]
[1720003573819,0.03065472,3315.7,3314.9,1.814]
[1720003574932,0.03065472,3315.7,3315.0,1.814]
[1720003575832,0.03065472,3315.7,3314.7,1.814]
[1720003576038,0.03065472,3315.7,3314.9,1.814]
[1720003576217,7.042,3316.8,3315.1,1.814]
[1720003576408,0.03052995,3315.6,3315.3,1.814]
[1720003576611,1.0,3316.2,3315.3,1.814]
[1720003577104,1.0,3316.0,3315.3,1.814]
[1720003577309,1.0,3316.0,3314.9,1.814]
[1720003577648,0.8042,3316.7,3314.8,2.679]
[1720003577649,1.0,3316.2,3315.1,1.814]
[1720003577941,6.92418906,3315.9,3315.1,1.814]
[1720003578153,6.8936,3315.9,3315.1,1.814]
[1720003578353,1.0,3315.6,3315.1,1.814]
[1720003578639,6.8936,3315.9,3315.1,1.814]
[1720003578809,0.03056936,3315.5,3315.1,1.814]
[1720003579002,6.8936,3315.9,3315.1,1.814]
[1720003579205,0.03056936,3315.8,3314.8,1.814]
[1720003579416,1.0,3315.6,3314.7,1.814]
[1720003579612,6.8936,3315.9,3314.7,1.814]
[1720003579613,1.0,3315.4,3314.7,1.814]
[1720003580016,1.0,3315.6,3314.7,1.814]
[1720003580545,0.03048399,3315.5,3314.7,1.814]
[1720003580918,1.0,3315.6,3314.7,1.814]
[1720003581314,1.178936,3315.6,3314.7,1.814]
[1720003581536,1.0,3315.4,3314.7,1.814]
[1720003583339,1.0,3315.2,3314.7,1.814]